fUSD/lending_fUSD_20241122
["ID","MTS","AMOUNT","RATE_DAILY","PERIOD"]
[342979583,1732243838095,-7746.83438588,0.000603,120]
[342979584,1732243838105,-10000.0,0.000603,120]
[342979585,1732243838115,-5000.0,0.00060302,30]
[342979586,1732243838124,-500.0,0.00060302,120]
[342979587,1732243838134,-500.0,0.00060302,120]
[342979588,1732243838144,-340.83,0.00060326,2]
[342979589,1732243838155,-500.0,0.00060329,120]
[342979590,1732243838164,-500.0,0.00060329,120]
[342979591,1732243838174,-321.24547996,0.00060331,120]
[342979592,1732243838184,-5543.0,0.00060334,120]
[342979593,1732243838195,-5000.0,0.00060342,30]
[342979594,1732243838205,-500.0,0.00060357,120]
[342979595,1732243838214,-553.11075773,0.00060357,120]
[342979596,1732243838223,-658.36473727,0.00060384,120]
[342979597,1732243838233,-1000.0,0.000604,120]
[342979598,1732243838242,-5000.0,0.00060447,30]
[342979599,1732243838260,-150.0,0.00060449,120]
[342979600,1732243838269,-2506.02,0.0006047,30]
[342979601,1732243838279,-2823.37,0.00060515,30]
[342979602,1732243838288,-25000.0,0.00060536,30]
[342979603,1732243838298,-258.71839952,0.00060546,120]
[342979604,1732243838308,-325.68,0.00060546,120]
[342979605,1732243838317,-188.58812201,0.00060546,120]
[342979606,1732243838327,-500.0,0.00060546,120]
[342979607,1732243838337,-500.0,0.00060546,120]
[342979608,1732243838347,-500.0,0.00060546,120]
[342979609,1732243838356,-500.0,0.00060546,120]
[342979610,1732243838365,-2446.95,0.00060547,120]
[342979611,1732243838375,-500.0,0.00060563,120]
[342979612,1732243838386,-1402.87,0.00060563,2]
[342979613,1732243838395,-500.0,0.00060563,120]
[342979614,1732243838404,-500.0,0.00060563,120]
[342979615,1732243838413,-500.0,0.00060563,120]
[342979616,1732243838424,-500.0,0.00060563,120]
[342979617,1732243838434,-500.0,0.00060563,120]
[342979618,1732243838444,-25000.0,0.00060564,30]
[342979619,1732243838454,-366.96163624,0.00060571,120]
[342979620,1732243838463,-500.0,0.00060571,120]
[342979621,1732243838472,-500.0,0.00060571,120]
[342979622,1732243838482,-1739.75,0.00060571,120]
[342979623,1732243838491,-500.0,0.00060571,120]
[342979624,1732243838504,-500.0,0.00060571,120]
[342979625,1732243838513,-500.0,0.00060572,120]
[342979626,1732243838523,-1016.04,0.00060572,120]
[342979627,1732243838532,-500.0,0.00060572,120]
[342979629,1732243838541,-500.0,0.00060572,120]
[342979630,1732243838654,-4536.08,0.00060573,30]
[342979631,1732243838664,-270.51761472,0.0006059,40]
[342979632,1732243838673,-251.343629,0.000606,30]
[342979633,1732243838683,-5000.0,0.00060627,30]
[342979634,1732243838692,-2363.0,0.00060636,30]
[342979635,1732243838702,-5000.0,0.0006064,30]
[342979636,1732243838711,-151.0,0.00060649,120]
[342979637,1732243838721,-151.0,0.00060649,120]
[342979638,1732243838730,-8464.2294195,0.00060649,2]
[342979639,1732243838739,-1482.0973046,0.00060649,2]
[342979640,1732243838753,-500.0,0.00060674,21]
[342979641,1732243838762,-500.0,0.00060674,120]
[342979642,1732243838771,-500.0,0.00060674,120]
[342979643,1732243838781,-500.0,0.00060674,120]
[342979644,1732243838790,-5000.0,0.00060675,30]
[342979645,1732243838800,-832.86,0.00060687,120]
[342979646,1732243838810,-869.85,0.00060687,120]
[342979647,1732243838820,-665.99,0.00060688,120]
[342979648,1732243838829,-1171.35623882,0.00060689,120]
[342979649,1732243838839,-821.82031335,0.00060689,120]
[342979650,1732243838848,-665.99,0.00060689,120]
[342979651,1732243838858,-665.99,0.00060689,120]
[342979652,1732243838868,-665.99,0.00060689,120]
[342979653,1732243838877,-665.99,0.00060689,120]
[342979654,1732243838887,-665.99,0.00060689,120]
[342979655,1732243838896,-665.99,0.00060689,120]
[342979656,1732243838906,-665.99,0.00060689,120]
[342979657,1732243838915,-666.10379473,0.00060689,120]
[342979658,1732243838925,-151.0,0.00060689,120]
[342979659,1732243838935,-151.0,0.00060689,120]
[342979660,1732243838944,-288.323561,0.00060689,120]
[342979661,1732243838953,-500.0,0.00060689,120]
[342979662,1732243838963,-498.58333498,0.00060689,120]
[342979663,1732243838972,-832.86,0.00060689,120]
[342979664,1732243838983,-832.86,0.00060689,120]
[342979665,1732243838992,-832.86,0.00060689,120]
[342979666,1732243839005,-697.48056319,0.00060689,120]
[342979667,1732243839019,-135.37943681,0.00060689,120]
[342979668,1732243839029,-869.85,0.00060689,120]
[342979669,1732243839038,-869.85,0.00060689,120]
[342979670,1732243839049,-869.85,0.00060689,120]
[342979671,1732243839058,-869.85,0.00060689,120]
[342979672,1732243839068,-442.46357318,0.00060689,120]
[342979673,1732243839077,-500.0,0.00060689,120]
[342979674,1732243839087,-500.0,0.00060689,120]
[342979675,1732243839096,-500.0,0.00060689,120]
[342979676,1732243839105,-500.0,0.00060689,120]
[342979677,1732243839115,-500.0,0.00060689,120]
[342979678,1732243839124,-500.0,0.00060689,120]
[342979679,1732243839133,-500.0,0.00060689,120]
[342979680,1732243839143,-500.0,0.00060689,120]
[342979681,1732243839152,-500.0,0.00060689,21]
[342979682,1732243839162,-500.0,0.00060689,21]
[342979683,1732243839171,-500.0,0.00060689,21]
[342979684,1732243839182,-500.0,0.00060689,21]
[342979685,1732243839191,-1402.87,0.00060689,2]
[342979686,1732243839200,-1402.87,0.00060689,2]
[342979687,1732243839210,-1402.87,0.00060689,2]
[342979688,1732243839219,-1402.87,0.00060689,2]
[342979689,1732243839229,-500.0,0.00060689,120]
[342979690,1732243839239,-500.0,0.00060689,120]
[342979691,1732243839251,-312.16161521,0.00060689,120]
[342979692,1732243839265,-500.0,0.00060689,120]
[342979693,1732243839274,-500.0,0.00060689,120]
[342979694,1732243839283,-500.0,0.00060689,120]
[342979695,1732243839293,-500.0,0.00060689,120]
[342979696,1732243839302,-611.85246833,0.00060689,120]
[342979697,1732243839311,-500.0,0.00060689,120]
[342979698,1732243839321,-500.0,0.00060689,120]
[342979699,1732243839331,-500.0,0.00060689,120]
[342979700,1732243839340,-500.0,0.00060689,120]
[342979701,1732243839350,-477.52538951,0.00060689,120]
[342979702,1732243839359,-500.0,0.00060689,120]
[342979703,1732243839369,-500.0,0.00060689,120]
[342979704,1732243839379,-500.0,0.00060689,120]
[342979705,1732243839389,-195.65,0.00060689,120]
[342979706,1732243839398,-500.0,0.00060689,120]
[342979707,1732243839408,-191.69612158,0.00060689,120]
[342979708,1732243839420,-308.30387842,0.00060689,120]
[342979709,1732243839430,-282.50570031,0.00060689,120]
[342979710,1732243839503,-217.49429969,0.00060689,120]
[342979711,1732243839513,-500.0,0.00060689,120]
[342979712,1732243839523,-1016.04,0.00060689,120]
[342979713,1732243839532,-924.09710239,0.00060689,120]
[342979714,1732243839544,-91.94289761,0.00060689,120]
[342979715,1732243839554,-908.04899039,0.00060689,120]
[342979716,1732243839570,-107.99100961,0.00060689,120]
[342979717,1732243839580,-509.31115548,0.00060689,120]
[342979718,1732243839592,-506.72884452,0.00060689,120]
[342979719,1732243839603,-1359.63110589,0.00060689,120]
[342979720,1732243839615,-380.11889411,0.00060689,120]
[342979721,1732243839626,-1739.75,0.00060689,120]
[342979722,1732243839637,-1739.75,0.00060689,120]
[342979723,1732243839646,-1739.75,0.00060689,120]
[342979724,1732243839655,-500.0,0.00060689,120]
[342979725,1732243839665,-500.0,0.00060689,120]
[342979726,1732243839675,-500.0,0.00060689,120]
[342979727,1732243839686,-500.0,0.00060689,120]
[342979728,1732243839695,-500.0,0.00060689,120]
[342979729,1732243839705,-500.0,0.00060689,120]
[342979730,1732243839715,-500.0,0.00060689,120]
[342979731,1732243839725,-500.0,0.00060689,120]
[342979732,1732243839734,-500.0,0.00060689,120]
[342979733,1732243839743,-500.0,0.00060689,120]
[342979734,1732243839755,-500.0,0.00060689,120]
[342979735,1732243839764,-500.0,0.00060689,120]
[342979736,1732243839774,-403.02138613,0.00060689,120]
[342979737,1732243839785,-96.97861387,0.00060689,120]
[342979738,1732243839795,-500.0,0.00060689,120]
[342979739,1732243839805,-542.7404924,0.00060689,120]
[342979740,1732243839814,-500.0,0.00060689,120]
[342979741,1732243839823,-500.0,0.00060689,120]
[342979742,1732243839832,-516.73430957,0.00060689,120]
[342979743,1732243839841,-477.57970502,0.00060689,120]
[342979744,1732243839851,-500.0,0.00060689,120]
[342979745,1732243839860,-500.0,0.00060689,120]
[342979746,1732243839869,-500.0,0.00060689,120]
[342979747,1732243839879,-500.0,0.00060689,120]
[342979748,1732243839888,-491.22907232,0.00060689,120]
[342979749,1732243840008,-8.77092768,0.00060689,120]
[342979751,1732243840017,-500.0,0.00060689,120]
[342979752,1732243840026,-500.0,0.00060689,120]
[342979753,1732243840036,-255.34526417,0.00060689,120]
[342979754,1732243840047,-244.65473583,0.00060689,120]
[342979755,1732243840057,-500.0,0.00060689,120]
[342979756,1732243840067,-380.7732654,0.00060689,120]
[342979757,1732243840076,-7918.56539132,0.0006069,120]
[342979758,1732243840261,-500.0,0.00056127,30]
[342979759,1732243840271,-1076.84272,0.0006069,120]
[342979760,1732243840283,-748.9,0.0006069,120]
[342979761,1732243840294,-386.22297038,0.0006069,120]
[342979762,1732243840307,-34487.61589091,0.0006069,120]
[342979763,1732243840319,-5899.9761469,0.0006069,120]
[342979764,1732243840330,-666.52798681,0.0006069,120]
[342979768,1732243843492,-194.46,0.00059598,2]
[342979769,1732243843504,-947.96289974,0.00059996,2]
[342979770,1732243843514,-238.82,0.00060679,30]
[342979771,1732243843523,-4618.75708526,0.0006069,120]
[342979772,1732243843535,-610.57052342,0.0006069,120]
[342979773,1732243843547,-2479.11592008,0.0006069,120]
[342979774,1732243843559,-12501.08473555,0.0006069,120]
[342979775,1732243843575,-6498.13254171,0.0006069,120]
[342979776,1732243843732,-112366.87971178,0.0006069,120]
[342979777,1732243843743,-7708.27212142,0.0006069,120]
[342979778,1732243843756,-12184.78883254,0.0006069,120]
[342979779,1732243843767,-10641.37571247,0.0006069,120]
[342979780,1732243843779,-3816.02616428,0.0006069,120]
[342979781,1732243843791,-4561.42093239,0.0006069,120]
[342979782,1732243843803,-3972.09929284,0.0006069,120]
[342979783,1732243843999,-500.0,0.0005749,30]
[342979786,1732243844019,-766856.82531994,0.0006069,120]
[342979789,1732243844030,-151.0,0.0006069,30]
[342979790,1732243844040,-151.0,0.0006069,120]
[342979791,1732243844049,-151.0,0.0006069,120]
[342979792,1732243844058,-151.0,0.0006069,120]
[342979793,1732243844068,-160.25,0.0006069,120]
[342979794,1732243844077,-151.0,0.0006069,120]
[342979795,1732243844086,-218.29338,0.0006069,120]
[342979796,1732243844096,-218.29338,0.0006069,120]
[342979797,1732243844105,-151.0,0.0006069,120]
[342979798,1732243844114,-151.0,0.0006069,120]
[342979799,1732243844123,-151.0,0.0006069,120]
[342979800,1732243844133,-151.0,0.0006069,120]
[342979801,1732243844143,-249.81321,0.0006069,120]
[342979802,1732243844155,-249.81321,0.0006069,120]
[342979803,1732243844165,-156.955624,0.0006069,120]
[342979804,1732243844176,-151.0,0.0006069,120]
[342979805,1732243844186,-231.934244,0.0006069,120]
[342979806,1732243844197,-231.934244,0.0006069,120]
[342979807,1732243844207,-151.0,0.0006069,120]
[342979808,1732243844217,-151.0,0.0006069,120]
[342979809,1732243844226,-151.0,0.0006069,120]
[342979810,1732243844236,-151.0,0.0006069,120]
[342979811,1732243844247,-269.76801,0.0006069,120]
[342979812,1732243844260,-269.76801,0.0006069,120]
[342979813,1732243844269,-151.0,0.0006069,120]
[342979814,1732243844278,-407.08653,0.0006069,120]
[342979815,1732243844287,-151.0,0.0006069,120]
[342979816,1732243844297,-3203.280202,0.0006069,120]
[342979817,1732243844307,-407.08653,0.0006069,120]
[342979818,1732243844316,-3203.280202,0.0006069,120]
[342979819,1732243844326,-151.0,0.0006069,120]
[342979820,1732243844336,-165.244304,0.0006069,120]
[342979821,1732243844345,-152.444629,0.0006069,120]
[342979822,1732243844355,-5000.0,0.00060692,30]
[342979823,1732243844366,-4672.66,0.00060695,30]
[342979824,1732243844375,-5000.0,0.00060704,30]
[342979825,1732243844385,-632.5,0.00060768,30]
[342979826,1732243844395,-1829.8,0.00060786,30]
[342979827,1732243844405,-5000.0,0.00060795,30]
[342979828,1732243844415,-500.0,0.000608,120]
[342979829,1732243844424,-900.0,0.000608,22]
[342979830,1732243844434,-5000.0,0.00060803,30]
[342979831,1732243844444,-2446.95,0.00060821,120]
[342979832,1732243844454,-150.0,0.00060832,30]
[342979833,1732243844464,-150.0,0.0006085,120]
[342979834,1732243844474,-5000.0,0.00060861,30]
[342979835,1732243844483,-2354.81,0.0006087,30]
[342979836,1732243844492,-12378.04699445,0.00060899,15]
[342979837,1732243844502,-1095.36490614,0.00060899,15]
[342979838,1732243844515,-5000.0,0.00060899,30]
[342979839,1732243844524,-500.0,0.00060899,120]
[342979840,1732243844534,-500.0,0.00060899,120]
[342979841,1732243844543,-1402.87,0.00060899,2]
[342979842,1732243844552,-500.0,0.00060899,120]
[342979843,1732243844565,-500.0,0.00060899,120]
[342979844,1732243844575,-500.0,0.00060899,120]
[342979845,1732243844585,-18255.88485711,0.000609,120]
[342979846,1732243844595,-1200.0,0.000609,22]
[342979847,1732243844606,-1663.3,0.00060907,30]
[342979848,1732243844616,-2394.53,0.00060921,30]
[342979849,1732243844627,-150.0,0.00060928,120]
[342979850,1732243844636,-500.0,0.0006093,120]
[342979851,1732243844647,-1739.75,0.0006093,120]
[342979852,1732243844657,-500.0,0.0006093,120]
[342979853,1732243844665,-500.0,0.0006093,120]
[342979854,1732243844674,-832.86,0.00060931,120]
[342979855,1732243844684,-832.86,0.00060931,120]
[342979856,1732243844693,-832.86,0.00060931,120]
[342979857,1732243844703,-832.86,0.00060931,120]
[342979858,1732243844713,-833.01496565,0.00060931,120]
[342979859,1732243844722,-869.85,0.00060931,120]
[342979860,1732243844731,-869.85,0.00060931,120]
[342979861,1732243844740,-869.85,0.00060931,120]
[342979862,1732243844749,-869.85,0.00060931,120]
[342979863,1732243844763,-869.94885522,0.00060931,120]
[342979864,1732243844775,-2506.02,0.00060932,30]
[342979865,1732243844784,-309.91,0.00060945,30]
[342979866,1732243844794,-15020.27,0.0006098,30]
[342979867,1732243844803,-5000.0,0.00060981,30]
[342979868,1732243844812,-500.0,0.00060996,120]
[342979869,1732243844822,-500.0,0.00060996,21]
[342979870,1732243844832,-1016.04,0.00060996,120]
[342979871,1732243844841,-500.0,0.00060996,120]
[342979872,1732243844945,-500.0,0.00060996,120]
[342979873,1732243844955,-25000.0,0.00060997,30]
[342979874,1732243844965,-1000.0,0.00060999,120]
[342979875,1732243844974,-50000.0,0.00061,61]
[342979876,1732243844984,-16366.65880808,0.00061,60]
[342979877,1732243844993,-5000.0,0.00061,30]
[342979878,1732243845002,-500.0,0.00061,45]
[342979879,1732243845015,-38487.98654945,0.00061,60]
[342979880,1732243845025,-190.0,0.00061,50]
[342979881,1732243845035,-2000.0,0.00061,120]
[342979882,1732243845044,-517.86894716,0.00061,120]
[342979883,1732243845055,-178.45586683,0.00061,120]
[342979884,1732243845065,-151.0,0.00061,120]
[342979885,1732243845074,-217.91748,0.00061,120]
[342979886,1732243845084,-500.0,0.00061036,120]
[342979887,1732243845094,-2447.18087996,0.00061095,120]
[342979888,1732243845104,-504.55,0.00061123,120]
[342979889,1732243845113,-500.0,0.00061173,120]
[342979890,1732243845123,-500.0,0.0006131,120]
[342979891,1732243845133,-230.65631041,0.00061415,30]
[342979892,1732243845143,-150.0,0.00061431,120]
[342979893,1732243845152,-500.0,0.00061447,120]
[342979894,1732243845162,-150.0,0.00061465,120]
[342979895,1732243845171,-500.0,0.00061584,120]
[342979896,1732243845180,-238.21,0.00061687,2]
[342979897,1732243845190,-500.0,0.00061721,120]
[342979898,1732243845199,-500.0,0.000618,120]
[342979899,1732243845209,-500.0,0.000618,120]
[342979900,1732243845219,-169.752824,0.000618,120]
[342979901,1732243845228,-194.46,0.00061804,2]
[342979902,1732243845237,-500.0,0.00061858,120]
[342979903,1732243845247,-1124.57238412,0.00061899,28]
[342979904,1732243845262,-150.0,0.00061919,120]
[342979905,1732243845271,-500.0,0.00061995,120]
[342979906,1732243845283,-500.0,0.00061999,120]
[342979907,1732243845294,-1402.87,0.00061999,2]
[342979908,1732243845303,-500.0,0.00061999,120]
[342979909,1732243845312,-500.0,0.00061999,120]
[342979910,1732243845322,-500.0,0.00061999,120]
[342979911,1732243845331,-1739.75,0.00061999,120]
[342979912,1732243845341,-500.0,0.00061999,120]
[342979913,1732243845351,-500.0,0.00061999,120]
[342979914,1732243845361,-500.0,0.00061999,120]
[342979915,1732243845370,-29614.27194864,0.00062,62]
[342979916,1732243845383,-646.2314293,0.00062,62]
[342979917,1732243846025,-500.0,0.00057534,120]
[342979921,1732243846035,-3200.0,0.00062,62]
[342979923,1732243846047,-15721.82031335,0.00062,62]
[342979924,1732243846059,-337.275,0.00062,62]
[342979925,1732243846071,-480.40130871,0.00062,62]
[342979927,1732243846081,-450.0,0.00062,120]
[342979928,1732243846091,-1000.0,0.00062,120]
[342979929,1732243846101,-200.0,0.00062,120]
[342979930,1732243846110,-755.22750182,0.00062,60]
[342979931,1732243846119,-154.87655,0.00062,30]
[342979932,1732243846129,-151.0,0.00062,120]
[342979933,1732243846138,-151.0,0.00062,120]
[342979934,1732243846147,-151.0,0.00062,120]
[342979935,1732243846156,-151.0,0.00062,120]
[342979936,1732243846166,-218.29338,0.00062,120]
[342979937,1732243846175,-218.29338,0.00062,120]
[342979938,1732243846186,-151.0,0.00062,120]
[342979939,1732243846195,-151.0,0.00062,120]
[342979940,1732243846205,-151.0,0.00062,120]
[342979941,1732243846214,-151.0,0.00062,120]
[342979942,1732243846224,-249.81321,0.00062,120]
[342979943,1732243846233,-249.81321,0.00062,120]
[342979944,1732243846242,-151.0,0.00062,120]
[342979945,1732243846251,-231.934244,0.00062,120]
[342979946,1732243846266,-66.2612615,0.00062,120]
[342979947,1732243846279,-165.6729825,0.00062,120]
[342979948,1732243846289,-151.0,0.00062,120]
[342979949,1732243846298,-127.37001755,0.00062,120]
[342979950,1732243846311,-23.62998245,0.00062,120]
[342979951,1732243846321,-156.295046,0.00062,120]
[342979952,1732243846330,-221.16497155,0.00062,120]
[342979953,1732243846342,-48.60303845,0.00062,120]
[342979954,1732243846351,-269.76801,0.00062,120]
[342979955,1732243846360,-151.0,0.00062,120]
[342979956,1732243846369,-407.08653,0.00062,120]
[342979957,1732243846379,-151.0,0.00062,120]
[342979958,1732243846389,-3203.280202,0.00062,120]
[342979959,1732243846399,-407.08653,0.00062,120]
[342979960,1732243846409,-3203.280202,0.00062,120]
[342979961,1732243846419,-151.0,0.00062,120]
[342979962,1732243846428,-500.0,0.00062132,120]
[342979963,1732243846438,-321.8258679,0.00062169,2]
[342979964,1732243846447,-223.0,0.000622,120]
[342979965,1732243846457,-2795.51041036,0.000622,90]
[342979966,1732243846467,-500.0,0.00062269,120]
[342979967,1732243846477,-500.0,0.00062406,120]
[342979968,1732243846486,-500.0,0.00062439,120]
[342979969,1732243846495,-1016.04,0.00062439,120]
[342979970,1732243846504,-500.0,0.00062439,120]
[342979971,1732243846516,-500.0,0.00062439,120]
[342979972,1732243846527,-5174.09155593,0.0006244,30]
[342979974,1732243846539,-4825.90844407,0.0006244,30]
[342979976,1732243846549,-448.19980501,0.0006245,21]
[342979977,1732243846562,-5439.84761012,0.00062451,2]
[342979978,1732243846575,-7086.3673165,0.00062451,2]
[342979985,1732245032389,-156.47,0.00015342,2]
[342979986,1732245032399,-157.82,0.00015342,2]
[342979987,1732245032409,-245.0,0.0002,2]
[342979988,1732245032420,-1250.51626,0.0002499,60]
[342979989,1732245032647,-1936.11191499,0.0002499,60]
[342979991,1732245032656,-159.0,0.00025,30]
[342979993,1732245032667,-327.17,0.00026986,120]
[342979995,1732245032677,-156.0,0.0003,30]
[342979997,1732245032688,-156.0,0.0003,20]
[342979999,1732245032698,-250.0,0.00031,2]
[342980001,1732245032707,-156.0,0.00035,30]
[342980003,1732245032716,-1784.11376085,0.00037704,30]
[342980005,1732245032726,-2385.35829979,0.00037704,30]
[342980006,1732245032737,-1863.66744931,0.00037704,15]
[342980007,1732245032747,-161.08293151,0.000378,5]
[342980008,1732245032756,-150.0,0.00038,10]
[342980009,1732245032766,-156.0,0.0004,30]
[342980010,1732245032776,-150.0,0.0004183,20]
[342980011,1732245032786,-156.0,0.00045,30]
[342980012,1732245032795,-157.82,0.00045753,2]
[342980013,1732245032805,-150.0,0.00046,20]
[342980014,1732245032814,-150.0,0.0004954,25]
[342980015,1732245032824,-158.06892545,0.0004968,120]
[342980016,1732245032833,-156.0,0.0005,60]
[342980017,1732245032843,-150.0,0.00052,30]
[342980018,1732245032852,-156.0,0.00055,30]
[342980019,1732245032862,-150.0,0.0005517,30]
[342980020,1732245032871,-170.41,0.00056495,2]
[342980021,1732245032881,-250.0,0.00056575,120]
[342980022,1732245032891,-500.0,0.00057534,120]
[342980023,1732245032900,-523.60809778,0.00057534,120]
[342980024,1732245032910,-295.33911391,0.00057534,120]
[342980025,1732245032920,-500.0,0.00057534,120]
[342980026,1732245032932,-500.0,0.00057534,120]
[342980027,1732245032945,-2000.0,0.00057534,120]
[342980028,1732245032955,-2000.0,0.00057534,120]
[342980029,1732245032964,-2000.0,0.00057534,120]
[342980030,1732245032974,-2000.0,0.00057534,120]
[342980031,1732245032988,-2000.0,0.00057534,120]
[342980032,1732245032998,-2000.0,0.00057534,120]
[342980033,1732245033011,-2000.0,0.00057534,120]
[342980034,1732245033022,-960.79945764,0.00057534,120]
[342980035,1732245033035,-384.09779325,0.00057534,120]
[342980036,1732245038213,-500.0,0.00056575,120]
[342980037,1732245038223,-655.10274911,0.00057534,120]
[342980038,1732245038232,-2000.0,0.00057534,120]
[342980040,1732245038245,-2000.0,0.00057534,120]
[342980042,1732245038255,-500.0,0.00057534,120]
[342980044,1732245038264,-500.0,0.00057534,120]
[342980046,1732245038273,-150.0,0.0005764,30]
[342980047,1732245038283,-1000.0,0.00057641,120]
[342980048,1732245038294,-250.0,0.00057643,120]
[342980049,1732245038303,-2000.0,0.00057808,120]
[342980050,1732245038312,-2000.0,0.00057808,120]
[342980051,1732245038322,-1780.22298754,0.00058,30]
[342980052,1732245038331,-2000.0,0.00058082,120]
[342980053,1732245038341,-2000.0,0.00058082,120]
[342980054,1732245038351,-178.65,0.0005812,2]
[342980055,1732245038360,-2000.0,0.00058356,120]
[342980056,1732245038370,-2000.0,0.00058356,120]
[342980057,1732245038379,-155.44,0.00058398,120]
[342980058,1732245038389,-2000.0,0.0005863,120]
[342980059,1732245038398,-2000.0,0.0005863,120]
[342980060,1732245038408,-2000.0,0.00058904,120]
[342980061,1732245038418,-2000.0,0.00058904,120]
[342980062,1732245038428,-194.46,0.0005899,2]
[342980063,1732245038438,-274.42,0.00059004,30]
[342980064,1732245038447,-2000.0,0.00059178,120]
[342980065,1732245038456,-2000.0,0.00059178,120]
[342980066,1732245038467,-2000.0,0.00059452,120]
[342980067,1732245038476,-2000.0,0.00059452,120]
[342980068,1732245038488,-5410.30712352,0.000595,120]
[342980069,1732245038498,-150.0,0.0005968,40]
[342980070,1732245038507,-2000.0,0.00059726,120]
[342980071,1732245038516,-2000.0,0.00059726,120]
[342980072,1732245038526,-218.56445996,0.00059895,120]
[342980073,1732245038536,-500.0,0.00059897,120]
[342980074,1732245038546,-292.49,0.00059897,120]
[342980075,1732245038556,-524.40043644,0.00059897,120]
[342980076,1732245038566,-500.0,0.00059897,120]
[342980077,1732245038575,-500.0,0.00059897,120]
[342980078,1732245038584,-500.0,0.00059996,120]
[342980079,1732245038594,-500.0,0.00059996,120]
[342980080,1732245038603,-500.0,0.00059996,120]
[342980081,1732245038613,-500.0,0.00059996,120]
[342980082,1732245038623,-500.0,0.00059996,120]
[342980083,1732245038633,-500.0,0.00059996,120]
[342980084,1732245038644,-360.57711352,0.0006,120]
[342980085,1732245038654,-156.0,0.0006,30]
[342980086,1732245038663,-2000.0,0.0006,120]
[342980087,1732245038673,-2000.0,0.0006,120]
[342980088,1732245038683,-249.999999,0.0006,120]
[342980089,1732245038693,-250.0,0.00060055,120]
[342980090,1732245038703,-215.9739,0.00060093,2]
[342980091,1732245038713,-1947.0,0.0006014,60]
[342980092,1732245038723,-500.0,0.00060193,2]
[342980093,1732245038733,-23900.0,0.00060193,2]
[342980094,1732245038745,-170.41,0.00060261,2]
[342980095,1732245038755,-2000.0,0.00060274,120]
[342980096,1732245038764,-2000.0,0.00060274,120]
[342980097,1732245038773,-2000.0,0.00060274,120]
[342980098,1732245038783,-2000.0,0.00060274,120]
[342980099,1732245038793,-2000.0,0.00060274,120]
[342980100,1732245038802,-2000.0,0.00060274,120]
[342980101,1732245038812,-1558.33029153,0.00060274,120]
[342980102,1732245038837,-441.66970847,0.00060274,120]
[342980103,1732245038847,-130.73065685,0.00060274,120]
[342980104,1732245038858,-1869.26934315,0.00060274,120]
[342980105,1732245038868,-2000.0,0.00060274,120]
[342980106,1732245038878,-2000.0,0.00060274,120]
[342980107,1732245038887,-1000.0,0.00060274,120]
[342980108,1732245038898,-150.0,0.00060289,30]
[342980109,1732245038908,-150.0,0.00060345,30]
[342980110,1732245038917,-150.0,0.00060347,30]
[342980111,1732245038928,-178.65,0.00060384,2]
[342980112,1732245038939,-150.0,0.00060394,30]
[342980113,1732245038949,-150.0,0.00060416,30]
[342980114,1732245038961,-150.0,0.00060488,30]
[342980115,1732245038973,-150.0,0.00060517,30]
[342980116,1732245038983,-150.0,0.00060523,30]